[Event "*** Titled Tuesday Blitz"]
[Site "Chess.com"]
[Date "2020.04.21"]
[Round "7"]
[White "DraskovicL"]
[Black "PavlovDanila"]
[Result "1-0"]
[WhiteElo "2594"]
[BlackElo "2743"]
[TimeControl "180+1"]
[EndTime "11:24:09 PDT"]
[Termination "DraskovicL won by checkmate"]

1. e4 {[%clk 0:03:00.9]} 1... e6 {[%clk 0:03:00.1]} 2. d3 {[%clk 0:03:00]} 2...
d5 {[%clk 0:03:00.5]} 3. Nf3 {[%clk 0:02:59.8]} 3... Nf6 {[%clk 0:03:00.6]} 4.
Nbd2 {[%clk 0:02:59.6]} 4... b6 {[%clk 0:02:52.8]} 5. g3 {[%clk 0:02:58.1]} 5...
Bb7 {[%clk 0:02:52.4]} 6. Bg2 {[%clk 0:02:56.6]} 6... dxe4 {[%clk 0:02:52.2]} 7.
Ng5 {[%clk 0:02:54.9]} 7... c5 {[%clk 0:02:37.3]} 8. Ndxe4 {[%clk 0:02:52]} 8...
Nc6 {[%clk 0:02:36.1]} 9. Nxf6+ {[%clk 0:02:50]} 9... gxf6 {[%clk 0:02:33.1]}
10. Ne4 {[%clk 0:02:48.2]} 10... f5 {[%clk 0:02:30.6]} 11. Nc3 {[%clk
0:02:40.4]} 11... Be7 {[%clk 0:02:28.2]} 12. Bh6 {[%clk 0:02:36.3]} 12... Rg8
{[%clk 0:02:23.9]} 13. Qd2 {[%clk 0:02:32]} 13... Rg6 {[%clk 0:02:11.2]} 14. Be3
{[%clk 0:02:27.1]} 14... Qd7 {[%clk 0:02:09.5]} 15. O-O-O {[%clk 0:02:23.3]}
15... O-O-O {[%clk 0:02:07.6]} 16. Kb1 {[%clk 0:02:22.8]} 16... Bf6 {[%clk
0:02:06.8]} 17. Rhe1 {[%clk 0:02:05.6]} 17... h5 {[%clk 0:02:04.1]} 18. h4
{[%clk 0:02:01.7]} 18... Nd4 {[%clk 0:02:02.7]} 19. Bxb7+ {[%clk 0:02:00.3]}
19... Qxb7 {[%clk 0:02:03.6]} 20. Bxd4 {[%clk 0:02:00.1]} 20... Bxd4 {[%clk
0:01:58.5]} 21. Qe2 {[%clk 0:01:55.7]} 21... Bxc3 {[%clk 0:01:52.7]} 22. bxc3
{[%clk 0:01:56.6]} 22... Rg4 {[%clk 0:01:52.7]} 23. Qe5 {[%clk 0:01:51.3]} 23...
Ra4 {[%clk 0:01:41.8]} 24. Kb2 {[%clk 0:01:40.9]} 24... Qa6 {[%clk 0:01:37.6]}
25. Ra1 {[%clk 0:01:40.8]} 25... Qb5+ {[%clk 0:01:36.9]} 26. Kc1 {[%clk
0:01:40.7]} 26... Qc6 {[%clk 0:01:25.3]} 27. Kd2 {[%clk 0:01:37.5]} 27... Qf3
{[%clk 0:01:23.4]} 28. Qe2 {[%clk 0:01:34.4]} 28... Qd5 {[%clk 0:01:20.4]} 29.
Qxh5 {[%clk 0:01:28.8]} 29... Rd7 {[%clk 0:01:10.8]} 30. Qh8+ {[%clk 0:01:20.8]}
30... Kb7 {[%clk 0:01:10.2]} 31. Qe5 {[%clk 0:01:17]} 31... Qf3 {[%clk
0:01:09.1]} 32. Qe2 {[%clk 0:01:13]} 32... Qd5 {[%clk 0:01:05]} 33. h5 {[%clk
0:01:12.4]} 33... Rxa2 {[%clk 0:01:01.8]} 34. Rxa2 {[%clk 0:01:11.7]} 34... Qxa2
{[%clk 0:01:02.7]} 35. h6 {[%clk 0:01:02.7]} 35... Rd8 {[%clk 0:00:46]} 36. Qe5
{[%clk 0:00:50.7]} 36... Qa4 {[%clk 0:00:33.5]} 37. h7 {[%clk 0:00:28.2]} 37...
Qe8 {[%clk 0:00:32.8]} 38. Qg7 {[%clk 0:00:27.1]} 38... Rc8 {[%clk 0:00:14.8]}
39. Rh1 {[%clk 0:00:23.8]} 39... Qh8 {[%clk 0:00:15.1]} 40. Qxf7+ {[%clk
0:00:23.1]} 40... Rc7 {[%clk 0:00:15.5]} 41. Qg8 {[%clk 0:00:21.9]} 41... Rc8
{[%clk 0:00:15.7]} 42. Qxe6 {[%clk 0:00:19]} 42... Rf8 {[%clk 0:00:15.1]} 43.
Rh6 {[%clk 0:00:17.2]} 43... Qg7 {[%clk 0:00:13.2]} 44. Qg6 {[%clk 0:00:15.2]}
44... Qxg6 {[%clk 0:00:09.4]} 45. Rxg6 {[%clk 0:00:16.1]} 45... Rh8 {[%clk
0:00:09.9]} 46. Rh6 {[%clk 0:00:16.4]} 46... a5 {[%clk 0:00:09.6]} 47. Ke3
{[%clk 0:00:16.5]} 47... a4 {[%clk 0:00:09.8]} 48. Kf4 {[%clk 0:00:16.8]} 48...
a3 {[%clk 0:00:10]} 49. Kxf5 {[%clk 0:00:17.3]} 49... a2 {[%clk 0:00:10.4]} 50.
Rh1 {[%clk 0:00:15.2]} 50... Rxh7 {[%clk 0:00:10.8]} 51. Ra1 {[%clk 0:00:15.5]}
51... Rh2 {[%clk 0:00:11.4]} 52. Rxa2 {[%clk 0:00:14.5]} 52... Rxf2+ {[%clk
0:00:11.8]} 53. Kg5 {[%clk 0:00:14.9]} 53... Kc6 {[%clk 0:00:12]} 54. g4 {[%clk
0:00:15.2]} 54... b5 {[%clk 0:00:11.9]} 55. Kh5 {[%clk 0:00:14.4]} 55... Rh2+
{[%clk 0:00:10.3]} 56. Kg6 {[%clk 0:00:14.1]} 56... b4 {[%clk 0:00:10.6]} 57.
cxb4 {[%clk 0:00:13.9]} 57... cxb4 {[%clk 0:00:11.5]} 58. Ra8 {[%clk 0:00:12.4]}
58... Kb5 {[%clk 0:00:03.8]} 59. Rc8 {[%clk 0:00:12.3]} 59... Ka4 {[%clk
0:00:04]} 60. g5 {[%clk 0:00:12.3]} 60... Rg2 {[%clk 0:00:03.8]} 61. Kh6 {[%clk
0:00:11.8]} 61... Kb5 {[%clk 0:00:04.2]} 62. g6 {[%clk 0:00:11.7]} 62... Rh2+
{[%clk 0:00:03.4]} 63. Kg7 {[%clk 0:00:11.3]} 63... Rg2 {[%clk 0:00:04.3]} 64.
Kf7 {[%clk 0:00:11.3]} 64... Rf2+ {[%clk 0:00:04.7]} 65. Kg8 {[%clk 0:00:11.4]}
65... Rg2 {[%clk 0:00:05.6]} 66. g7 {[%clk 0:00:11.5]} 66... Kb6 {[%clk
0:00:04.4]} 67. d4 {[%clk 0:00:10.3]} 67... Kb7 {[%clk 0:00:04.4]} 68. Rc4
{[%clk 0:00:10.3]} 68... Ka6 {[%clk 0:00:03.4]} 69. Rxb4 {[%clk 0:00:09.9]}
69... Rxc2 {[%clk 0:00:03.9]} 70. Rb8 {[%clk 0:00:09.5]} 70... Rg2 {[%clk
0:00:03.8]} 71. Rf8 {[%clk 0:00:09.7]} 71... Kb7 {[%clk 0:00:03.8]} 72. Kf7
{[%clk 0:00:09.8]} 72... Rf2+ {[%clk 0:00:03.6]} 73. Ke7 {[%clk 0:00:10]} 73...
Re2+ {[%clk 0:00:03.7]} 74. Kd6 {[%clk 0:00:10.1]} 74... Rd2 {[%clk 0:00:04.2]}
75. g8=Q {[%clk 0:00:10]} 75... Rxd4+ {[%clk 0:00:05.1]} 76. Qd5+ {[%clk
0:00:10]} 76... Rxd5+ {[%clk 0:00:05.2]} 77. Kxd5 {[%clk 0:00:10.9]} 77... Kc7
{[%clk 0:00:06.1]} 78. Rf6 {[%clk 0:00:10.9]} 78... Kd7 {[%clk 0:00:07]} 79.
Rf7+ {[%clk 0:00:11.3]} 79... Kd8 {[%clk 0:00:06.9]} 80. Rh7 {[%clk 0:00:11.2]}
80... Ke8 {[%clk 0:00:07.2]} 81. Kd6 {[%clk 0:00:10.2]} 81... Kf8 {[%clk
0:00:08.1]} 82. Ra7 {[%clk 0:00:10.2]} 82... Ke8 {[%clk 0:00:07.9]} 83. Rb7
{[%clk 0:00:09.9]} 83... Kf8 {[%clk 0:00:08.2]} 84. Ke6 {[%clk 0:00:10.2]} 84...
Kg8 {[%clk 0:00:09.1]} 85. Kf6 {[%clk 0:00:10.4]} 85... Kh8 {[%clk 0:00:10]} 86.
Kg6 {[%clk 0:00:10.3]} 86... Kg8 {[%clk 0:00:10.9]} 87. Rb8# {[%clk 0:00:10.5]}
1-0

[Event "*** Titled Tuesday Blitz"]
[Site "Chess.com"]
[Date "2020.04.21"]
[Round "7"]
[White "Leonid_Starozhilov"]
[Black "TengisChess"]
[Result "1-0"]
[WhiteElo "2638"]
[BlackElo "2470"]
[TimeControl "180+1"]
[EndTime "11:24:11 PDT"]
[Termination "Leonid_Starozhilov won by checkmate"]

1. e4 {[%clk 0:03:00.9]} 1... c6 {[%clk 0:02:59.1]} 2. d3 {[%clk 0:03:00.8]}
2... d5 {[%clk 0:02:57.9]} 3. Nd2 {[%clk 0:03:01.3]} 3... g6 {[%clk 0:02:57.2]}
4. Ngf3 {[%clk 0:03:01.6]} 4... Bg7 {[%clk 0:02:57.6]} 5. d4 {[%clk 0:03:02.1]}
5... Bg4 {[%clk 0:02:56.5]} 6. c3 {[%clk 0:03:01.3]} 6... dxe4 {[%clk
0:02:51.1]} 7. Nxe4 {[%clk 0:03:01.1]} 7... Nf6 {[%clk 0:02:51.3]} 8. h3 {[%clk
0:02:56.3]} 8... Bxf3 {[%clk 0:02:50.6]} 9. Qxf3 {[%clk 0:02:56.2]} 9... Nxe4
{[%clk 0:02:51]} 10. Qxe4 {[%clk 0:02:57.1]} 10... Qd5 {[%clk 0:02:51.2]} 11.
Bd3 {[%clk 0:02:35.5]} 11... Qxe4+ {[%clk 0:02:47.7]} 12. Bxe4 {[%clk
0:02:36.4]} 12... Nd7 {[%clk 0:02:48]} 13. O-O {[%clk 0:02:32.7]} 13... Nf6
{[%clk 0:02:47.5]} 14. Bf3 {[%clk 0:02:27.7]} 14... O-O {[%clk 0:02:48.4]} 15.
Re1 {[%clk 0:02:25.8]} 15... e6 {[%clk 0:02:48.6]} 16. a4 {[%clk 0:02:23.9]}
16... a5 {[%clk 0:02:48.3]} 17. Bg5 {[%clk 0:02:20.4]} 17... Nd5 {[%clk
0:02:47.7]} 18. g3 {[%clk 0:02:17]} 18... h6 {[%clk 0:02:46.8]} 19. Bd2 {[%clk
0:02:13.5]} 19... Rfd8 {[%clk 0:02:47.1]} 20. Red1 {[%clk 0:02:09.7]} 20... g5
{[%clk 0:02:46.4]} 21. Kg2 {[%clk 0:02:05.8]} 21... Rd7 {[%clk 0:02:46.8]} 22.
Bc1 {[%clk 0:01:35.8]} 22... Rad8 {[%clk 0:02:45]} 23. Rh1 {[%clk 0:01:35]}
23... Nf6 {[%clk 0:02:39.8]} 24. Be3 {[%clk 0:01:29.3]} 24... Nd5 {[%clk
0:02:36.8]} 25. Bc1 {[%clk 0:01:24.8]} 25... f5 {[%clk 0:02:36.2]} 26. Ra3
{[%clk 0:01:20]} 26... Nb6 {[%clk 0:02:30.9]} 27. Re1 {[%clk 0:00:58.6]} 27...
Re7 {[%clk 0:02:21.4]} 28. g4 {[%clk 0:00:53.6]} 28... f4 {[%clk 0:02:20]} 29.
Ra1 {[%clk 0:00:48.5]} 29... e5 {[%clk 0:02:17.7]} 30. dxe5 {[%clk 0:00:43.2]}
30... Rxe5 {[%clk 0:02:16.4]} 31. Rxe5 {[%clk 0:00:39.8]} 31... Bxe5 {[%clk
0:02:17.3]} 32. Ra3 {[%clk 0:00:27.4]} 32... Rd7 {[%clk 0:02:14]} 33. b4 {[%clk
0:00:21.5]} 33... Bd6 {[%clk 0:02:09.5]} 34. Rb3 {[%clk 0:00:14.7]} 34... Nxa4
{[%clk 0:02:07.9]} 35. bxa5 {[%clk 0:00:13.3]} 35... Nc5 {[%clk 0:02:07.4]} 36.
Rb1 {[%clk 0:00:12.8]} 36... Bf8 {[%clk 0:01:55.6]} 37. Ba3 {[%clk 0:00:09.8]}
37... Na6 {[%clk 0:01:53.7]} 38. Bb4 {[%clk 0:00:06.8]} 38... Bxb4 {[%clk
0:01:47.4]} 39. cxb4 {[%clk 0:00:07.2]} 39... Nc7 {[%clk 0:01:48]} 40. a6 {[%clk
0:00:05]} 40... Nxa6 {[%clk 0:01:46.5]} 41. b5 {[%clk 0:00:05.5]} 41... Nc5
{[%clk 0:01:32.5]} 42. bxc6 {[%clk 0:00:05.6]} 42... bxc6 {[%clk 0:01:33.4]} 43.
Rc1 {[%clk 0:00:06.1]} 43... Nd3 {[%clk 0:01:26.2]} 44. Ra1 {[%clk 0:00:06.1]}
44... Ne5 {[%clk 0:01:24.9]} 45. Be4 {[%clk 0:00:06]} 45... Rd4 {[%clk
0:01:22.6]} 46. Bf5 {[%clk 0:00:04.8]} 46... c5 {[%clk 0:01:11.1]} 47. Ra5
{[%clk 0:00:04.9]} 47... f3+ {[%clk 0:01:04.9]} 48. Kh2 {[%clk 0:00:04.7]} 48...
Rd2 {[%clk 0:01:03.9]} 49. Kg3 {[%clk 0:00:04.1]} 49... Rd1 {[%clk 0:01:03.4]}
50. Kh2 {[%clk 0:00:03.4]} 50... Rc1 {[%clk 0:01:01]} 51. Ra7 {[%clk 0:00:02.1]}
51... Rf1 {[%clk 0:00:59.3]} 52. Kg3 {[%clk 0:00:01.6]} 52... Rg1+ {[%clk
0:00:59]} 53. Kh2 {[%clk 0:00:02.2]} 53... Rg2+ {[%clk 0:00:59.5]} 54. Kh1
{[%clk 0:00:02]} 54... Rxf2 {[%clk 0:01:00.1]} 55. Be4 {[%clk 0:00:02.5]} 55...
Re2 {[%clk 0:00:59.1]} 56. Bd5+ {[%clk 0:00:02.2]} 56... Kf8 {[%clk 0:00:59.4]}
57. Kg1 {[%clk 0:00:02.7]} 57... Rd2 {[%clk 0:00:56.6]} 58. Be4 {[%clk
0:00:02.7]} 58... c4 {[%clk 0:00:55.3]} 59. Rc7 {[%clk 0:00:02.7]} 59... Rd4
{[%clk 0:00:50.5]} 60. Bf5 {[%clk 0:00:02.5]} 60... Rd2 {[%clk 0:00:47.1]} 61.
Be6 {[%clk 0:00:02.7]} 61... f2+ {[%clk 0:00:45]} 62. Kf1 {[%clk 0:00:03.1]}
62... Nf3 {[%clk 0:00:44.2]} 63. Rf7+ {[%clk 0:00:02.1]} 63... Ke8 {[%clk
0:00:42.3]} 64. Rxf3 {[%clk 0:00:03]} 64... Rc2 {[%clk 0:00:38.4]} 65. Bf5
{[%clk 0:00:03.3]} 65... Rc1+ {[%clk 0:00:36.5]} 66. Kxf2 {[%clk 0:00:03.9]}
66... c3 {[%clk 0:00:37.2]} 67. Kg2 {[%clk 0:00:04.5]} 67... Ke7 {[%clk
0:00:37.5]} 68. Rf2 {[%clk 0:00:05.4]} 68... Kd6 {[%clk 0:00:37.8]} 69. Rc2
{[%clk 0:00:06.1]} 69... Rd1 {[%clk 0:00:37]} 70. Rxc3 {[%clk 0:00:06.6]} 70...
Ke5 {[%clk 0:00:37.6]} 71. Rf3 {[%clk 0:00:06.4]} 71... Rd2+ {[%clk 0:00:36.8]}
72. Rf2 {[%clk 0:00:07.3]} 72... Rd1 {[%clk 0:00:34.9]} 73. Re2+ {[%clk
0:00:07.8]} 73... Kf6 {[%clk 0:00:30.6]} 74. Re6+ {[%clk 0:00:08.1]} 74... Kg7
{[%clk 0:00:30]} 75. Rg6+ {[%clk 0:00:08.8]} 75... Kf7 {[%clk 0:00:30.3]} 76.
Rxh6 {[%clk 0:00:09.4]} 76... Rd2+ {[%clk 0:00:19.3]} 77. Kf3 {[%clk 0:00:09.7]}
77... Rh2 {[%clk 0:00:19]} 78. Ke4 {[%clk 0:00:07.9]} 78... Kg7 {[%clk
0:00:17.8]} 79. Rg6+ {[%clk 0:00:07.8]} 79... Kf7 {[%clk 0:00:18.3]} 80. Rxg5
{[%clk 0:00:07.9]} 80... Rxh3 {[%clk 0:00:18.7]} 81. Kf4 {[%clk 0:00:06.4]}
81... Ra3 {[%clk 0:00:19.6]} 82. Rh5 {[%clk 0:00:06.7]} 82... Kg7 {[%clk
0:00:19.6]} 83. Kg5 {[%clk 0:00:06.7]} 83... Kg8 {[%clk 0:00:18.7]} 84. Rh1
{[%clk 0:00:07.1]} 84... Ra8 {[%clk 0:00:17.6]} 85. Rb1 {[%clk 0:00:08]} 85...
Rd8 {[%clk 0:00:17.1]} 86. Kf6 {[%clk 0:00:07.8]} 86... Kf8 {[%clk 0:00:15]} 87.
g5 {[%clk 0:00:07.7]} 87... Rd6+ {[%clk 0:00:14.3]} 88. Be6 {[%clk 0:00:08.2]}
88... Rd8 {[%clk 0:00:14.5]} 89. g6 {[%clk 0:00:08.3]} 89... Ke8 {[%clk
0:00:13.6]} 90. g7 {[%clk 0:00:08.3]} 90... Rd1 {[%clk 0:00:13.1]} 91. g8=Q#
{[%clk 0:00:08.5]} 1-0

[Event "*** Titled Tuesday Blitz"]
[Site "Chess.com"]
[Date "2020.04.21"]
[Round "7"]
[White "Vuk2000"]
[Black "SPEEDSKATER"]
[Result "1-0"]
[WhiteElo "2633"]
[BlackElo "2777"]
[TimeControl "180+1"]
[EndTime "11:24:25 PDT"]
[Termination "Vuk2000 won by resignation"]

1. d4 {[%clk 0:03:00.9]} 1... d5 {[%clk 0:02:58.4]} 2. Nf3 {[%clk 0:03:00.3]}
2... Nf6 {[%clk 0:02:56.8]} 3. Bf4 {[%clk 0:02:59.9]} 3... c5 {[%clk 0:02:55.6]}
4. c3 {[%clk 0:02:59.3]} 4... Nc6 {[%clk 0:02:55.4]} 5. e3 {[%clk 0:02:59.1]}
5... Qb6 {[%clk 0:02:55]} 6. Qb3 {[%clk 0:02:55.5]} 6... c4 {[%clk 0:02:55.3]}
7. Qc2 {[%clk 0:02:54.8]} 7... Bf5 {[%clk 0:02:54.9]} 8. Qc1 {[%clk 0:02:55.3]}
8... e6 {[%clk 0:02:54.3]} 9. Be2 {[%clk 0:02:54.6]} 9... Be7 {[%clk 0:02:54]}
10. h3 {[%clk 0:02:52]} 10... h6 {[%clk 0:02:53.7]} 11. Nbd2 {[%clk 0:02:51.2]}
11... Qd8 {[%clk 0:02:52.7]} 12. Ne5 {[%clk 0:02:46.2]} 12... Nxe5 {[%clk
0:02:50.2]} 13. Bxe5 {[%clk 0:02:45.9]} 13... O-O {[%clk 0:02:50.4]} 14. O-O
{[%clk 0:02:40.5]} 14... b5 {[%clk 0:02:50.2]} 15. f3 {[%clk 0:02:24.8]} 15...
Bg6 {[%clk 0:02:45.4]} 16. Bd1 {[%clk 0:02:10.6]} 16... Nd7 {[%clk 0:02:39.2]}
17. Bg3 {[%clk 0:02:05.5]} 17... Nf6 {[%clk 0:02:05.5]} 18. Bc2 {[%clk
0:02:04.4]} 18... Bxc2 {[%clk 0:02:06]} 19. Qxc2 {[%clk 0:02:05.3]} 19... Bd6
{[%clk 0:02:06.8]} 20. Bxd6 {[%clk 0:02:01.1]} 20... Qxd6 {[%clk 0:02:07.7]} 21.
e4 {[%clk 0:02:01.2]} 21... e5 {[%clk 0:02:00.5]} 22. dxe5 {[%clk 0:01:53.4]}
22... Qxe5 {[%clk 0:01:59.3]} 23. f4 {[%clk 0:01:53.8]} 23... Qe7 {[%clk
0:01:41.7]} 24. e5 {[%clk 0:01:48.6]} 24... Nh5 {[%clk 0:01:41.1]} 25. Rf3
{[%clk 0:01:16.4]} 25... Qh4 {[%clk 0:01:03.3]} 26. Qf5 {[%clk 0:01:03.7]} 26...
g6 {[%clk 0:00:57]} 27. Qg4 {[%clk 0:00:58.9]} 27... Qxg4 {[%clk 0:00:57.4]} 28.
hxg4 {[%clk 0:00:59.8]} 28... Ng7 {[%clk 0:00:57.8]} 29. Rd1 {[%clk 0:00:57.1]}
29... Rad8 {[%clk 0:00:56.7]} 30. Nf1 {[%clk 0:00:55.5]} 30... f6 {[%clk
0:00:54.7]} 31. Ne3 {[%clk 0:00:26.4]} 31... fxe5 {[%clk 0:00:46.4]} 32. fxe5
{[%clk 0:00:27.3]} 32... Rfe8 {[%clk 0:00:39]} 33. Nxd5 {[%clk 0:00:27.4]} 33...
Kh8 {[%clk 0:00:38.7]} 34. Rd4 {[%clk 0:00:26.8]} 34... Rxe5 {[%clk 0:00:33.3]}
35. Nf4 {[%clk 0:00:24.1]} 35... Rxd4 {[%clk 0:00:29.2]} 36. Nxg6+ {[%clk
0:00:20]} 36... Kh7 {[%clk 0:00:29.1]} 37. Nxe5 {[%clk 0:00:17.4]} 37... Rd2
{[%clk 0:00:28.1]} 38. Rf2 {[%clk 0:00:17.4]} 38... Rd1+ {[%clk 0:00:28.3]} 39.
Kh2 {[%clk 0:00:17.9]} 39... Kg8 {[%clk 0:00:27.1]} 40. Nc6 {[%clk 0:00:17.7]}
40... Ne6 {[%clk 0:00:23.6]} 41. Nxa7 {[%clk 0:00:16.4]} 41... Rd5 {[%clk
0:00:16.7]} 42. Nc6 {[%clk 0:00:16.4]} 42... Kg7 {[%clk 0:00:15.9]} 43. Ne7
{[%clk 0:00:15.5]} 43... Rd3 {[%clk 0:00:15.6]} 44. Nf5+ {[%clk 0:00:10.4]}
44... Kg6 {[%clk 0:00:15.1]} 45. g3 {[%clk 0:00:10.4]} 45... Ng5 {[%clk
0:00:14.7]} 46. Re2 {[%clk 0:00:09.7]} 46... Kf6 {[%clk 0:00:13.1]} 47. Nxh6
{[%clk 0:00:08.5]} 47... Nf3+ {[%clk 0:00:12.8]} 48. Kg2 {[%clk 0:00:08.8]}
48... Ng5 {[%clk 0:00:13.7]} 49. Nf5 {[%clk 0:00:08.9]} 49... Rd8 {[%clk
0:00:12.7]} 50. Nd4 {[%clk 0:00:09]} 50... Rd5 {[%clk 0:00:12.2]} 51. a3 {[%clk
0:00:08.7]} 51... Nf7 {[%clk 0:00:11.5]} 52. Nf3 {[%clk 0:00:08.7]} 52... Rd3
{[%clk 0:00:10.6]} 53. g5+ {[%clk 0:00:08.1]} 53... Kf5 {[%clk 0:00:10]} 54. Rf2
{[%clk 0:00:05.5]} 54... Kg6 {[%clk 0:00:08.7]} 55. Nh4+ {[%clk 0:00:05]} 55...
Kg7 {[%clk 0:00:09]} 56. Nf5+ {[%clk 0:00:05.2]} 56... Kg6 {[%clk 0:00:09]} 57.
Ne7+ {[%clk 0:00:05.7]} 57... Kg7 {[%clk 0:00:08.9]} 58. Nf5+ {[%clk 0:00:05.1]}
58... Kg6 {[%clk 0:00:09.1]} 59. Nh4+ {[%clk 0:00:05.4]} 59... Kg7 {[%clk
0:00:09.1]} 60. g6 {[%clk 0:00:05.3]} 60... Ne5 {[%clk 0:00:08.8]} 61. Re2
{[%clk 0:00:05.8]} 61... Nxg6 {[%clk 0:00:07.9]} 62. Nxg6 {[%clk 0:00:05.7]}
62... Kxg6 {[%clk 0:00:08.8]} 63. Kh3 {[%clk 0:00:06.6]} 63... Kf5 {[%clk
0:00:06.8]} 64. Kh4 {[%clk 0:00:06.3]} 64... Rd8 {[%clk 0:00:06.4]} 65. Rf2+
{[%clk 0:00:06]} 65... Kg6 {[%clk 0:00:06.4]} 66. g4 {[%clk 0:00:05.6]} 66...
Rd3 {[%clk 0:00:06.6]} 67. Re2 {[%clk 0:00:05.5]} 67... Kf6 {[%clk 0:00:06.2]}
68. Rf2+ {[%clk 0:00:05.5]} 68... Kg6 {[%clk 0:00:06.6]} 69. Rf5 {[%clk
0:00:05.7]} 69... Rd1 {[%clk 0:00:05.4]} 70. Rxb5 {[%clk 0:00:05.2]} 70... Rh1+
{[%clk 0:00:05.6]} 71. Kg3 {[%clk 0:00:05.8]} 71... Rg1+ {[%clk 0:00:06.5]} 72.
Kf4 {[%clk 0:00:06.2]} 72... Rf1+ {[%clk 0:00:06.4]} 73. Ke4 {[%clk 0:00:06.6]}
73... Rg1 {[%clk 0:00:06.9]} 74. Kd5 {[%clk 0:00:05.9]} 74... Rxg4 {[%clk
0:00:06.7]} 75. Rb4 {[%clk 0:00:06.1]} 75... Kf6 {[%clk 0:00:07.6]} 76. Rxc4
{[%clk 0:00:06.3]} 76... Rg5+ {[%clk 0:00:08]} 77. Kd4 {[%clk 0:00:06.2]} 77...
Ke7 {[%clk 0:00:08.9]} 78. Rb4 {[%clk 0:00:05.6]} 78... Kd6 {[%clk 0:00:08.5]}
79. Kc4 {[%clk 0:00:05.9]} 79... Kc6 {[%clk 0:00:08.7]} 80. Kb3 {[%clk
0:00:06.8]} 80... Rg1 {[%clk 0:00:07.9]} 81. a4 {[%clk 0:00:07.7]} 81... Kc7
{[%clk 0:00:07.5]} 82. Rb5 {[%clk 0:00:07.9]} 82... Rg4 {[%clk 0:00:06.7]} 83.
Ka3 {[%clk 0:00:07.8]} 83... Kc6 {[%clk 0:00:07]} 84. b3 {[%clk 0:00:08.2]}
84... Rg1 {[%clk 0:00:07.2]} 85. c4 {[%clk 0:00:08.6]} 85... Rf1 {[%clk
0:00:05.7]} 86. Kb4 {[%clk 0:00:09.5]} 86... Rg1 {[%clk 0:00:05.6]} 87. a5
{[%clk 0:00:10.4]} 87... Rf1 {[%clk 0:00:05.9]} 88. Rb6+ {[%clk 0:00:11.3]}
88... Kc7 {[%clk 0:00:05.7]} 89. Kb5 {[%clk 0:00:11.7]} 89... Rb1 {[%clk
0:00:06.1]} 90. b4 {[%clk 0:00:11.8]} 90... Rh1 {[%clk 0:00:07]} 91. a6 {[%clk
0:00:11.9]} 91... Ra1 {[%clk 0:00:06.6]} 92. Rb7+ {[%clk 0:00:11.6]} 92... Kc8
{[%clk 0:00:07.2]} 93. c5 {[%clk 0:00:11.8]} 1-0